bitfinex/quotes_BTCUSD_20260127
["timestamp","ask_amount","ask_price","bid_price","bid_amount"]
[1769553897789,0.16092682,89359.0,89350.0,0.00031832]
[1769553898231,0.16092682,89364.0,89359.0,0.00999998]
[1769553898431,0.16092682,89364.0,89350.0,0.02393833]
[1769553898862,0.16092682,89364.0,89350.0,0.00031832]
[1769553900136,0.11492,89365.0,89340.0,0.02362001]
[1769553900137,0.16092682,89359.0,89340.0,0.02362001]
[1769553900451,0.16092682,89357.0,89340.0,0.02362001]
[1769553900852,0.16092682,89355.0,89340.0,0.02362001]
[1769553901964,0.11440018,89354.0,89339.0,0.05614449]
[1769553902178,0.28784945,89360.0,89339.0,0.05614449]
[1769553902179,0.11492,89353.0,89339.0,0.05614449]
[1769553902427,0.16092682,89352.0,89340.0,0.02362001]
[1769553902627,0.11492,89353.0,89340.0,0.02362001]
[1769553903033,0.16092682,89357.0,89340.0,0.02362001]
[1769553903234,0.11492,89354.0,89340.0,0.02362001]
[1769553903750,0.02204291,89352.0,89339.0,0.000178]
[1769553903967,0.16092682,89351.0,89339.0,0.000178]
[1769553904170,0.2632335,89350.0,89329.0,0.02379801]
[1769553904379,0.2632335,89350.0,89332.0,0.05597098]
[1769553904380,0.18296973,89347.0,89332.0,0.05597098]
[1769553904796,0.16092682,89347.0,89332.0,0.05597098]
[1769553904994,0.16092682,89345.0,89332.0,0.05597098]
[1769553905202,0.16092682,89345.0,89331.0,0.0005405]
[1769553905589,0.16092682,89345.0,89333.0,0.05596993]
[1769553905789,0.16092682,89345.0,89332.0,0.05597098]
[1769553905997,0.16092682,89345.0,89333.0,0.05597023]
[1769553906157,0.16092682,89345.0,89333.0,0.05597029]
[1769553907256,0.06092682,89345.0,89333.0,0.05597029]
[1769553907575,0.06092682,89345.0,89332.0,0.05597098]
[1769553907777,0.06092682,89345.0,89331.0,0.0005405]
[1769553909286,0.08296973,89345.0,89331.0,0.0005405]
[1769553909915,0.02204291,89344.0,89331.0,0.0005405]
[1769553910114,0.16092682,89343.0,89331.0,0.0005405]
[1769553910492,0.16092682,89341.0,89331.0,0.0005405]
[1769553910690,0.18296973,89341.0,89331.0,0.0005405]
[1769553910879,0.02204291,89339.0,89331.0,0.0005405]
[1769553911090,0.16092682,89338.0,89331.0,0.0005405]
[1769553912225,0.16092682,89338.0,89323.0,0.02380031]
[1769553912605,0.16092682,89336.0,89323.0,0.0001803]
[1769553913170,0.02204291,89335.0,89323.0,0.0001803]
[1769553913374,0.16092682,89334.0,89323.0,0.0001803]
[1769553913796,0.16092682,89334.0,89313.0,0.15114768]
[1769553913797,0.18296973,89332.0,89311.0,0.02362001]
[1769553914018,0.16092682,89330.0,89311.0,0.02376038]
[1769553914416,0.16092682,89329.0,89311.0,0.02376038]
[1769553914838,0.16092682,89329.0,89311.0,0.00014037]
[1769553915058,0.16092682,89329.0,89312.0,0.02362001]
[1769553916204,0.2632335,89330.0,89311.0,0.00014037]
[1769553916205,0.16092682,89327.0,89311.0,0.00014037]
[1769553916374,0.16092682,89325.0,89311.0,0.00014037]
[1769553916582,0.18296973,89323.0,89311.0,0.00014037]
[1769553918101,0.02204291,89322.0,89311.0,0.00014037]
[1769553918261,0.18296973,89321.0,89311.0,0.00014037]
[1769553919377,0.2632335,89330.0,89308.0,0.0004]
[1769553919378,0.16092682,89319.0,89308.0,0.0004]
[1769553919644,0.16092682,89318.0,89308.0,0.0004]
[1769553925596,0.16461112,89316.0,89301.0,0.0004]
[1769553925816,0.16461112,89314.0,89301.0,0.0004]
[1769553926280,0.16461112,89312.0,89301.0,0.0004]
[1769553929027,0.16461112,89310.0,89301.0,0.0004]
[1769553934460,0.02264032,89309.0,89297.0,0.0002183]
[1769553934661,0.16461112,89308.0,89297.0,0.0002183]
[1769553935988,0.16461112,89308.0,89291.0,0.18915979]
[1769553936197,0.16461112,89308.0,89292.0,0.13316343]
[1769553936398,0.16461112,89308.0,89291.0,0.00014063]
[1769553936813,0.02264032,89307.0,89291.0,0.00014063]
[1769553937019,0.16461112,89304.0,89291.0,0.00014063]
[1769553940424,0.16461112,89298.0,89286.0,0.0004]
[1769553940622,0.16461112,89296.0,89286.0,0.00086887]
[1769553941481,0.115,89295.0,89286.0,0.00086887]
[1769553941678,0.16461112,89294.0,89286.0,0.00086887]
[1769553942275,0.115,89295.0,89286.0,0.00086887]
[1769553942474,0.16461112,89294.0,89286.0,0.00086887]
[1769553944293,0.115,89295.0,89286.0,0.00086887]
[1769553944512,0.115,89295.0,89294.0,0.00999998]
[1769553944727,0.115,89295.0,89289.0,0.02264989]
[1769553945327,0.10500002,89295.0,89289.0,0.02264989]
[1769553945855,0.26367772,89310.0,89288.0,0.15300225]
[1769553946091,0.30649112,89311.0,89292.0,0.15300225]
[1769553946263,0.26367772,89310.0,89293.0,0.02264989]
[1769553946463,0.16461112,89309.0,89293.0,0.02264989]
[1769553947353,0.26367772,89310.0,89293.0,0.02264989]
[1769553947551,0.115,89311.0,89286.0,0.00086887]
[1769553947552,0.115,89311.0,89296.0,0.15300225]
[1769553947759,0.115,89311.0,89297.0,0.02264989]
[1769553948359,0.115,89311.0,89296.0,0.15300225]
[1769553948643,0.115,89311.0,89298.0,0.15300225]
[1769553948869,0.115,89311.0,89299.0,0.15300225]
[1769553949082,0.18725144,89319.0,89302.0,0.02264989]
[1769553949626,0.16461112,89319.0,89302.0,0.02264989]
[1769553950289,0.11189835,89318.0,89302.0,0.02264989]
[1769553950502,0.16461112,89319.0,89302.0,0.02264989]
[1769553950721,0.11190962,89318.0,89302.0,0.02264989]
[1769553950910,0.16461112,89319.0,89302.0,0.02264989]
[1769553951141,0.11190947,89318.0,89302.0,0.02264989]
[1769553951360,0.11191799,89318.0,89302.0,0.02264989]
[1769553951563,0.16461112,89319.0,89302.0,0.02264989]
[1769553951776,0.11191814,89318.0,89302.0,0.02264989]
[1769553951925,0.16461112,89319.0,89302.0,0.02264989]
[1769553952132,0.1119183,89318.0,89302.0,0.02264989]
[1769553952332,0.16461112,89319.0,89302.0,0.02264989]
[1769553952533,0.11192803,89318.0,89302.0,0.02264989]
[1769553952756,0.16461112,89319.0,89302.0,0.15300225]
[1769553952951,0.16461112,89319.0,89303.0,0.02264989]
[1769553952952,0.11192811,89318.0,89303.0,0.02264989]
[1769553953176,0.16461112,89319.0,89303.0,0.02264989]
[1769553953380,0.1119387,89318.0,89303.0,0.02264989]
[1769553953733,0.115,89323.0,89307.0,0.02264989]
[1769553953862,0.115,89323.0,89308.0,0.02264989]
[1769553954067,0.115,89323.0,89309.0,0.15300225]
[1769553954443,0.115,89323.0,89317.0,0.00087792]
[1769553955817,0.11195048,89322.0,89317.0,0.00087792]
[1769553956020,0.00014035,89322.0,89317.0,0.00087792]
[1769553960053,0.00014035,89322.0,89310.0,0.05598467]
[1769553961058,0.00014035,89322.0,89309.0,0.20898739]
[1769553964023,0.00014035,89322.0,89310.0,0.05598445]
[1769553964229,0.00014035,89322.0,89310.0,0.05598451]
[1769553964459,0.00014035,89322.0,89310.0,0.20557419]
[1769553966409,0.00014035,89322.0,89310.0,0.05598451]
[1769553967592,0.00014035,89322.0,89309.0,0.20557471]
[1769553967978,0.00014035,89322.0,89310.0,0.05598473]
[1769553968299,0.00014035,89322.0,89309.0,0.20557471]
[1769553968494,0.00014035,89322.0,89310.0,0.20557437]
[1769553969583,0.00014035,89322.0,89310.0,0.17199838]
[1769553969748,0.00014035,89322.0,89310.0,0.12162169]
[1769553969947,0.00014035,89322.0,89310.0,0.08236985]
[1769553970228,0.00014035,89322.0,89310.0,0.05613144]
[1769553970776,0.00014035,89322.0,89310.0,0.11211613]
[1769553971854,0.00014035,89322.0,89310.0,0.05613144]
[1769553971992,0.00014035,89322.0,89310.0,0.11211614]
[1769553972199,0.00014035,89322.0,89310.0,0.0559847]
[1769553973783,0.00014035,89322.0,89309.0,0.05598503]
[1769553975885,0.00014035,89322.0,89310.0,0.05598464]
[1769553977279,0.00014035,89322.0,89309.0,0.05598503]
[1769553978815,0.00014035,89322.0,89310.0,0.05598466]
[1769553979477,0.00014035,89322.0,89308.0,0.05598589]
[1769553980249,0.00014035,89322.0,89307.0,0.05598665]
[1769553980647,0.00014035,89322.0,89307.0,0.05598654]
[1769553980886,0.03099768,89325.0,89307.0,0.05598654]
[1769553981091,0.15652669,89324.0,89307.0,0.05612689]
[1769553981313,0.11203751,89323.0,89307.0,0.05612689]
[1769553981499,0.04448918,89324.0,89307.0,0.00014035]
[1769553982833,0.20311025,89324.0,89307.0,0.00014035]
[1769553982991,0.08950638,89327.0,89307.0,0.00014035]
[1769553983189,0.04448918,89325.0,89307.0,0.00014035]
[1769553983393,0.04448918,89323.0,89307.0,0.00014035]
[1769553983633,0.04448918,89322.0,89307.0,0.00014035]
[1769553983933,0.04448918,89319.0,89307.0,0.00014035]
[1769553985235,0.04448918,89319.0,89308.0,0.16078149]
[1769553985445,0.04448918,89319.0,89307.0,0.00014035]
[1769553986598,0.04448918,89319.0,89297.0,0.22397166]
[1769553986599,0.00014035,89307.0,89291.0,0.16095769]
[1769553987363,0.00014035,89307.0,89291.0,0.0001762]
[1769553987364,0.04224011,89305.0,89291.0,0.0001762]
[1769553987583,0.04192152,89305.0,89291.0,0.0001762]
[1769553988762,0.15172225,89304.0,89291.0,0.0001762]
[1769553991775,0.03983168,89306.0,89291.0,0.0001762]
[1769553992419,0.15172225,89305.0,89291.0,0.0001762]
[1769553992663,0.03533341,89304.0,89291.0,0.0001762]
[1769553992841,0.15172225,89303.0,89291.0,0.0001762]
[1769553994247,0.03083513,89302.0,89291.0,0.0001762]
[1769553994447,0.03083513,89301.0,89291.0,0.0001762]
[1769553994649,0.03083513,89300.0,89291.0,0.0001762]
[1769553995472,0.03051652,89300.0,89291.0,0.0001762]
[1769553995678,0.18239808,89298.0,89291.0,0.0001762]
[1769553995903,0.18239808,89298.0,89286.0,0.0004]
[1769553995904,0.03067583,89297.0,89286.0,0.0004]
[1769553996205,0.26367506,89310.0,89286.0,0.0004]
[1769553996206,0.02601847,89294.0,89286.0,0.00086887]
[1769553996448,0.15172225,89293.0,89286.0,0.00086887]
[1769553996606,0.02601847,89292.0,89286.0,0.00086887]
[1769553997189,0.02601847,89292.0,89281.0,0.0004]
[1769553997190,0.15172225,89290.0,89281.0,0.0004]
[1769553997387,0.15172225,89290.0,89278.0,0.0006131]
[1769553997388,0.02601847,89287.0,89278.0,0.0006131]
[1769553997576,0.15172225,89285.0,89278.0,0.0006131]
[1769553997774,0.02601847,89284.0,89278.0,0.0006131]
[1769554001046,0.0004685,89290.0,89278.0,0.0006131]
[1769554001047,0.15172225,89281.0,89278.0,0.0006131]
[1769554001244,0.02376055,89280.0,89278.0,0.0006131]
[1769554002457,0.1754828,89280.0,89278.0,0.0006131]
[1769554004897,0.02376055,89280.0,89278.0,0.0006131]
[1769554005668,0.1754828,89285.0,89278.0,0.0006131]
[1769554006015,0.02376055,89284.0,89278.0,0.0006131]
[1769554006241,0.1754828,89284.0,89278.0,0.0006131]
[1769554006401,0.0004685,89290.0,89271.0,0.09439232]
[1769554006402,0.15172225,89282.0,89271.0,0.09439232]
[1769554006609,0.1754828,89282.0,89271.0,0.09439232]
[1769554007012,0.02376055,89281.0,89271.0,0.09439232]
[1769554007257,0.26414356,89290.0,89271.0,0.09439232]
[1769554007258,0.02376055,89280.0,89271.0,0.09439232]
[1769554007458,0.15172225,89279.0,89271.0,0.09439232]
[1769554007668,0.1754828,89279.0,89271.0,0.09439232]
[1769554009129,0.15172225,89277.0,89265.0,0.0002131]
[1769554009323,0.26414356,89290.0,89265.0,0.0002131]
[1769554009324,0.02376055,89276.0,89265.0,0.0002131]
[1769554009503,0.26414356,89290.0,89265.0,0.0002131]
[1769554009504,0.1754828,89275.0,89265.0,0.0002131]
[1769554009913,0.15172225,89273.0,89272.0,0.09399232]
[1769554012370,0.15172225,89273.0,89265.0,0.0002131]
[1769554012746,0.02376055,89274.0,89265.0,0.0002131]
[1769554012948,0.02376055,89283.0,89265.0,0.0002131]
[1769554013549,0.1754828,89283.0,89265.0,0.0002131]
[1769554013760,0.02376055,89282.0,89265.0,0.0002131]
[1769554014389,0.02376055,89282.0,89265.0,0.16268578]
[1769554014805,0.17817199,89282.0,89265.0,0.16268578]
[1769554015017,0.02333889,89281.0,89265.0,0.0002131]
[1769554015229,0.17775033,89278.0,89265.0,0.0002131]
[1769554016727,0.15441144,89278.0,89265.0,0.0002131]
[1769554016945,0.02333889,89275.0,89265.0,0.0002131]
[1769554017151,0.17775033,89275.0,89265.0,0.0002131]
[1769554018188,0.02333889,89274.0,89265.0,0.0002131]
[1769554018351,0.17775033,89274.0,89265.0,0.0002131]
[1769554018754,0.15441144,89274.0,89265.0,0.0002131]
[1769554019176,0.17775033,89279.0,89265.0,0.0002131]
[1769554020478,0.17775033,89279.0,89262.0,0.04382772]
[1769554024799,0.02333889,89279.0,89262.0,0.22880319]
[1769554025438,0.17775033,89279.0,89262.0,0.22880319]
[1769554026259,0.17775033,89279.0,89262.0,0.06633051]
[1769554026868,0.15441144,89279.0,89260.0,0.16247268]
[1769554027075,0.26367506,89280.0,89248.0,0.22409405]
[1769554027076,0.15441144,89275.0,89261.0,0.09399232]
[1769554027291,0.15441144,89273.0,89261.0,0.09399232]
[1769554028095,0.15441144,89273.0,89261.0,0.07160031]
[1769554028302,0.15441144,89273.0,89261.0,0.03237235]
[1769554028505,0.15441144,89273.0,89261.0,0.00062328]
[1769554028733,0.17775033,89273.0,89261.0,7.791e-05]
[1769554032463,0.17775033,89273.0,89257.0,0.05601783]
[1769554032815,0.17775033,89273.0,89256.0,0.05626287]
[1769554032816,0.17775033,89273.0,89256.0,0.0002447]
[1769554033070,0.17775033,89273.0,89257.0,0.05601797]
[1769554034760,0.02333889,89272.0,89257.0,0.05601797]
[1769554034961,0.26367506,89280.0,89257.0,0.02250279]
[1769554034962,0.15441144,89275.0,89257.0,0.02250279]
[1769554035976,0.15441144,89273.0,89257.0,0.02250279]
[1769554036582,0.15441144,89273.0,89256.0,0.0002447]
[1769554036800,0.15441144,89273.0,89256.0,0.02274749]
[1769554037321,0.02333889,89272.0,89256.0,0.02274749]
[1769554037530,0.15441144,89271.0,89256.0,0.02274749]
[1769554037676,0.15242072,89271.0,89256.0,0.02274749]
[1769554039208,0.15441144,89269.0,89256.0,0.0002447]
[1769554044611,0.15441144,89269.0,89256.0,0.05626308]
[1769554044808,0.15441144,89269.0,89256.0,0.0002447]
[1769554052841,0.15441144,89269.0,89251.0,0.02290279]
[1769554062603,0.08950638,89283.0,89251.0,0.02290279]
[1769554062821,0.0002104,89287.0,89251.0,0.02290279]
[1769554062822,0.11213651,89282.0,89262.0,0.15599462]
[1769554063026,0.03363355,89298.0,89270.0,0.26395659]
[1769554063236,0.1152504,89300.0,89282.0,0.15599462]
[1769554063237,0.0002104,89300.0,89282.0,0.15599462]
[1769554063451,0.0002104,89300.0,89285.0,0.02446274]
[1769554063675,0.13431833,89313.0,89293.0,0.15599462]
[1769554063875,0.13431833,89313.0,89306.0,0.09399232]
[1769554063876,0.0002104,89313.0,89306.0,0.09399232]
[1769554064077,0.0002104,89313.0,89304.0,0.02446274]
[1769554064284,0.0002104,89313.0,89305.0,0.11845506]
[1769554065587,0.15478949,89319.0,89305.0,0.11845506]
[1769554070091,0.15478949,89319.0,89305.0,0.09399232]
[1769554071545,0.02396696,89318.0,89306.0,0.09399232]
[1769554071937,0.15478949,89317.0,89306.0,0.09399232]
[1769554072133,0.02396696,89316.0,89306.0,0.09399232]
[1769554072342,0.15478949,89315.0,89306.0,0.09399232]
[1769554074142,0.02396696,89314.0,89306.0,0.09399232]
[1769554077997,0.0003184,89322.0,89306.0,0.09399232]
[1769554077998,0.0003184,89322.0,89306.0,0.14997923]
[1769554078204,0.0003184,89322.0,89307.0,0.15398827]
[1769554079389,0.0003184,89322.0,89308.0,0.20997379]
[1769554080138,0.0003184,89322.0,89309.0,0.05598539]
[1769554080327,0.0003184,89322.0,89310.0,0.05598434]
[1769554080937,0.0003184,89322.0,89309.0,0.05598481]
[1769554081136,0.0003184,89322.0,89310.0,0.05598467]
[1769554081766,0.0003184,89322.0,89311.0,0.05598384]
[1769554083674,0.45385686,89340.0,89320.0,0.09399232]
[1769554083876,0.0003861,89337.0,89321.0,0.15398827]
[1769554084224,0.0003861,89337.0,89322.0,0.15398827]
[1769554084420,0.0003861,89337.0,89325.0,0.05597503]
[1769554084580,0.0003861,89337.0,89327.0,0.05597361]
[1769554084774,0.0003861,89337.0,89334.0,0.09399232]
[1769554085010,0.0003861,89337.0,89334.0,0.09383308]
[1769554087157,0.0003861,89337.0,89334.0,0.09351456]
[1769554090008,0.16772539,89356.0,89334.0,0.09351456]
[1769554090009,0.06928559,89354.0,89335.0,0.15398827]
[1769554090211,0.00037144,89351.0,89348.0,0.09399232]
[1769554091237,0.00037144,89351.0,89339.0,0.0559665]
[1769554091455,0.07190591,89351.0,89339.0,0.0559665]
[1769554092139,0.07190591,89351.0,89338.0,0.05596613]
[1769554092802,0.07190591,89351.0,89339.0,0.05596637]
[1769554093656,0.07190591,89351.0,89339.0,0.05596657]
[1769554094449,0.07190591,89351.0,89338.0,0.05596617]
[1769554095390,0.07190591,89351.0,89339.0,0.05596658]
[1769554095593,0.07190591,89351.0,89338.0,0.05596682]
[1769554097780,0.07190591,89351.0,89339.0,0.05596648]
[1769554098413,0.07190591,89351.0,89338.0,0.05596682]
[1769554099086,0.07190591,89351.0,89335.0,0.15398827]
[1769554099264,0.07190591,89351.0,89338.0,0.05596688]
[1769554099690,0.00037144,89351.0,89338.0,0.05596688]
[1769554099907,0.00037144,89351.0,89339.0,0.15398827]
[1769554100330,0.00037144,89351.0,89339.0,0.20995482]
[1769554101729,0.00037144,89351.0,89339.0,0.15398827]
[1769554102394,0.00037144,89351.0,89338.0,0.05596698]
[1769554103267,0.00037144,89351.0,89339.0,0.05596655]
[1769554104078,0.00037144,89351.0,89338.0,0.05596698]
[1769554104682,0.00037144,89351.0,89339.0,0.05596652]
[1769554104886,0.00037144,89351.0,89334.0,0.24750283]
[1769554105090,0.00037144,89351.0,89334.0,0.09351456]
[1769554105420,0.00037144,89351.0,89338.0,0.05596722]
[1769554105844,0.00037144,89351.0,89321.0,0.09399232]
[1769554105845,0.1636268,89337.0,89321.0,0.09399232]
[1769554106095,0.01,89338.0,89308.0,0.0605929]
[1769554106096,0.07378359,89329.0,89308.0,0.0605929]
[1769554106288,0.26347178,89331.0,89308.0,0.0605929]
[1769554106289,0.07153479,89325.0,89308.0,0.0605929]
[1769554106461,0.07153479,89321.0,89308.0,0.0605929]
[1769554106636,0.1636268,89318.0,89302.0,0.09399232]
[1769554106840,0.07153479,89317.0,89300.0,0.0002456]
[1769554107043,0.26347178,89320.0,89300.0,0.0002456]
[1769554107044,0.07153479,89313.0,89300.0,0.0002456]
[1769554107243,0.26347178,89310.0,89288.0,0.16414659]
[1769554107452,0.07153479,89308.0,89288.0,0.16414659]
[1769554107800,0.26347178,89320.0,89288.0,0.16414659]
[1769554107801,0.07153479,89304.0,89288.0,0.16428709]
[1769554108188,0.26347178,89310.0,89288.0,0.0001405]
[1769554108189,0.1636268,89303.0,89288.0,0.0001405]
[1769554108391,0.06703664,89302.0,89288.0,0.0001405]
[1769554111914,0.0002264,89327.0,89288.0,0.0001405]
[1769554112208,0.0625381,89325.0,89301.0,0.16414659]
[1769554112427,0.1636268,89319.0,89301.0,0.115]
[1769554112630,0.0002264,89327.0,89301.0,0.115]
[1769554112631,0.05354106,89316.0,89301.0,0.115]
[1769554113192,0.05354106,89314.0,89301.0,0.115]
[1769554113396,0.05354106,89313.0,89301.0,0.115]
[1769554117424,0.21716786,89313.0,89301.0,0.115]
[1769554118038,0.1636268,89313.0,89300.0,0.26347178]
[1769554118190,0.03554966,89312.0,89301.0,0.0559899]
[1769554118398,0.03554966,89312.0,89302.0,0.05598975]
[1769554119008,0.03554966,89312.0,89301.0,0.05599019]
[1769554119829,0.03554966,89312.0,89300.0,0.31946173]
[1769554120418,0.03554966,89312.0,89300.0,0.26347178]
[1769554121248,0.03554966,89312.0,89300.0,0.3194628]
[1769554122403,0.03554966,89312.0,89301.0,0.05599027]
[1769554122644,0.02655383,89310.0,89295.0,0.115]
[1769554122876,0.1636268,89307.0,89295.0,0.17099364]
[1769554123072,0.02655383,89305.0,89295.0,0.115]
[1769554129464,0.19018063,89305.0,89295.0,0.115]
[1769554132720,0.19018063,89305.0,89295.0,0.11260335]
[1769554135583,0.19018063,89305.0,89295.0,0.11244421]
[1769554135723,0.19018063,89305.0,89289.0,0.14998994]
[1769554136757,0.19018063,89305.0,89290.0,0.05599719]
[1769554137512,0.19018063,89305.0,89289.0,0.14998994]
[1769554137924,0.19018063,89305.0,89291.0,0.05599665]
[1769554139234,0.19018063,89305.0,89290.0,0.05599719]
[1769554139640,0.19018063,89305.0,89291.0,0.05599661]
[1769554140337,0.19018063,89305.0,89289.0,0.09399232]
[1769554140705,0.19018063,89305.0,89291.0,0.05599639]
[1769554141903,0.19018063,89305.0,89290.0,0.0559972]
[1769554142138,0.1636268,89305.0,89290.0,0.07998382]
[1769554142811,0.1636268,89305.0,89291.0,0.05599646]
[1769554143017,0.1636268,89305.0,89289.0,0.09399232]
[1769554143223,0.1636268,89305.0,89289.0,0.14998984]
[1769554143366,0.26347178,89310.0,89292.0,0.02398662]
[1769554143568,0.26347178,89310.0,89295.0,0.16553286]
[1769554143791,0.26347178,89310.0,89296.0,0.02398662]
[1769554145790,0.17306353,89315.0,89296.0,0.02398662]
[1769554145995,0.28510042,89314.0,89296.0,0.02398662]
[1769554146335,0.17306353,89312.0,89296.0,0.02398662]
[1769554146515,0.11203689,89311.0,89296.0,0.02398662]
[1769554148130,0.43653531,89310.0,89296.0,0.02398662]
[1769554150284,0.26347178,89310.0,89296.0,0.02398662]
[1769554150490,0.17306353,89309.0,89296.0,0.02398662]
[1769554150675,0.19746863,89309.0,89289.0,0.02398662]
[1769554151320,0.11208461,89308.0,89289.0,0.02398662]
[1769554151453,0.17306353,89309.0,89291.0,0.02398662]
[1769554152291,0.17306353,89307.0,89288.0,0.0001405]
[1769554152570,0.0244051,89304.0,89288.0,0.0001405]
[1769554152739,0.17306353,89303.0,89288.0,0.0001405]
[1769554153185,0.19746863,89303.0,89288.0,0.0001405]
[1769554153414,0.17306353,89299.0,89288.0,0.0001405]
[1769554157642,0.17306353,89297.0,89275.0,0.38955945]
[1769554157880,0.17306353,89297.0,89278.0,0.02398662]
[1769554158035,0.17306353,89297.0,89283.0,0.0560011]
[1769554158616,0.17306353,89297.0,89282.0,0.05600127]
[1769554158617,0.0244051,89296.0,89278.0,0.07999095]
[1769554158829,0.26347178,89310.0,89277.0,0.0004685]
[1769554158830,0.26347178,89290.0,89277.0,0.0004685]
[1769554159035,0.17306353,89289.0,89277.0,0.0004685]
[1769554168230,0.17306353,89289.0,89268.0,0.16553286]
[1769554168231,0.1725428,89287.0,89266.0,0.02278034]
[1769554168366,0.1725428,89287.0,89262.0,0.17340372]
[1769554168367,0.17301102,89287.0,89269.0,0.02296817]
[1769554168566,0.19590414,89287.0,89269.0,0.02296817]
[1769554169203,0.17301102,89287.0,89269.0,0.02296817]
[1769554178202,0.17301102,89287.0,89269.0,0.0001092]
[1769554178403,0.1725428,89279.0,89269.0,5.46e-05]
[1769554180283,0.19543592,89279.0,89269.0,5.46e-05]
[1769554185216,0.19543592,89279.0,89262.0,0.02303277]
[1769554185217,0.1725428,89279.0,89262.0,0.0001738]
[1769554185424,0.1725428,89277.0,89262.0,0.0001738]
[1769554185630,0.02289312,89274.0,89262.0,0.0001738]
[1769554185831,0.1725428,89273.0,89262.0,0.0001738]
[1769554187258,0.1725428,89273.0,89262.0,0.05618863]
[1769554187471,0.1725428,89273.0,89262.0,0.0001738]
[1769554195505,0.26385937,89280.0,89254.0,0.05601986]
[1769554195506,0.16415053,89271.0,89254.0,0.05601987]
[1769554195717,0.16415053,89269.0,89255.0,0.05601924]
[1769554195870,0.16415053,89279.0,89256.0,0.0227607]
[1769554196074,0.16415053,89279.0,89257.0,0.0227607]
[1769554196283,0.16415053,89277.0,89257.0,0.0227607]
[1769554196515,0.16415053,89275.0,89257.0,0.0227607]
[1769554197789,0.16415053,89273.0,89255.0,0.05601924]
[1769554197993,0.16415053,89271.0,89255.0,0.05601924]
[1769554199967,0.16415053,89271.0,89256.0,0.0560184]
[1769554200603,0.16415053,89271.0,89254.0,0.07878037]
[1769554200738,0.16415053,89271.0,89254.0,0.0227607]
[1769554200944,0.16415053,89271.0,89254.0,0.07878029]
[1769554201549,0.18796074,89271.0,89254.0,0.0227607]
[1769554201771,0.02381021,89270.0,89254.0,0.07878059]
[1769554201929,0.16415053,89269.0,89254.0,0.07878059]
[1769554203985,0.16415053,89269.0,89257.0,0.05601759]
[1769554204187,0.16415053,89269.0,89255.0,0.05601895]
[1769554204379,0.16415053,89269.0,89256.0,0.05601853]
[1769554204632,0.16415053,89269.0,89255.0,0.05601882]
[1769554205993,0.16415053,89269.0,89256.0,0.0227607]
[1769554207005,0.16415053,89269.0,89256.0,0.07877888]
[1769554207210,0.16415053,89269.0,89256.0,0.0227607]
[1769554208580,0.16415053,89269.0,89257.0,0.05601801]
[1769554209414,0.16415053,89269.0,89251.0,0.0004]
[1769554209639,0.16415053,89269.0,89251.0,0.0231607]
[1769554212325,0.16415053,89269.0,89251.0,0.0004]
[1769554212497,0.16415053,89269.0,89252.0,0.0227607]
[1769554215444,0.16415053,89269.0,89251.0,0.0004]
[1769554215677,0.18796074,89267.0,89251.0,0.0004]
[1769554216177,0.18796074,89267.0,89251.0,0.0231607]
[1769554216407,0.16415053,89267.0,89251.0,0.0231607]
[1769554218885,0.16415053,89267.0,89251.0,0.07918235]
[1769554219388,0.16415053,89267.0,89252.0,0.0227607]
[1769554219907,0.16409054,89267.0,89252.0,0.0227607]
[1769554225353,0.28424574,89266.0,89252.0,0.0227607]
[1769554225570,0.1721475,89266.0,89252.0,0.0227607]
[1769554228527,0.1721475,89266.0,89251.0,0.0004]
[1769554235831,0.1721475,89266.0,89251.0,0.05642161]
[1769554236039,0.1721475,89266.0,89251.0,0.07961919]
[1769554236358,0.1721475,89266.0,89251.0,0.02359758]
[1769554236762,0.1721475,89269.0,89252.0,0.02319758]
[1769554237055,0.26400765,89270.0,89252.0,0.02319758]
[1769554237056,0.28427635,89268.0,89253.0,0.05602036]
[1769554237213,0.11212885,89267.0,89252.0,0.02319758]
[1769554237410,0.11212885,89266.0,89252.0,0.02319758]
[1769554237614,0.1721475,89268.0,89252.0,0.02319758]
[1769554237821,0.26400765,89270.0,89252.0,0.07921855]
[1769554237822,0.11213766,89267.0,89252.0,0.07921855]
[1769554238020,0.11213766,89266.0,89252.0,0.07921858]
[1769554238231,0.1721475,89268.0,89252.0,0.07921858]
[1769554238428,0.1721475,89268.0,89252.0,0.056021]
[1769554238649,0.1721475,89268.0,89252.0,0.07921858]
[1769554238848,0.1721475,89268.0,89252.0,0.02319758]
[1769554239051,0.1721475,89268.0,89252.0,0.0792185]
[1769554239451,0.1721475,89268.0,89252.0,0.02319758]
[1769554239904,0.1721475,89268.0,89252.0,0.07921848]
[1769554241240,0.1721475,89268.0,89252.0,0.02319758]
[1769554243880,0.26400765,89270.0,89252.0,0.02319758]
[1769554244072,0.11508,89275.0,89256.0,0.17142502]
[1769554244277,0.11508,89275.0,89255.0,0.05601904]
[1769554244278,0.11508,89275.0,89259.0,0.02319758]
[1769554245066,0.26400765,89270.0,89259.0,0.02319758]
[1769554249496,0.37634244,89275.0,89259.0,0.02319758]
[1769554249892,0.2872275,89275.0,89259.0,0.02319758]
[1769554250320,0.11216722,89274.0,89259.0,0.02319758]
[1769554250520,0.11216722,89273.0,89259.0,0.02319758]
[1769554250723,0.11216722,89272.0,89259.0,0.02319758]
[1769554251063,0.11216722,89271.0,89259.0,0.02319758]
[1769554251267,0.37634244,89275.0,89259.0,0.02319758]
[1769554251268,0.11216722,89270.0,89259.0,0.02319758]
[1769554251440,0.11216722,89269.0,89259.0,0.02319758]
[1769554251647,0.11216722,89268.0,89258.0,0.17142502]
[1769554251865,0.11216722,89267.0,89258.0,0.17142502]
[1769554252069,0.1721475,89272.0,89254.0,0.05601971]
[1769554252242,0.30765123,89271.0,89254.0,0.05601971]
[1769554252445,0.30765123,89271.0,89253.0,0.17142502]
[1769554252446,0.11216687,89270.0,89253.0,0.17142502]
[1769554252650,0.11216687,89269.0,89253.0,0.19073556]
[1769554252830,0.11216687,89268.0,89253.0,0.19073556]
[1769554253027,0.11216687,89267.0,89253.0,0.246756]
[1769554253288,0.26400765,89270.0,89253.0,0.246756]
[1769554253489,0.11216653,89269.0,89253.0,0.246756]
[1769554253699,0.11216653,89268.0,89253.0,0.246756]
[1769554253898,0.11216653,89267.0,89253.0,0.19073556]
[1769554254098,0.26400765,89270.0,89253.0,0.19073556]
[1769554254262,0.11216643,89269.0,89253.0,0.19073556]
[1769554254463,0.11216643,89268.0,89253.0,0.19073556]
[1769554254681,0.26400765,89270.0,89253.0,0.24675588]
[1769554254682,0.11216643,89267.0,89253.0,0.24675588]
[1769554254885,0.26400765,89270.0,89253.0,0.24675588]
[1769554255086,0.11216643,89269.0,89253.0,0.24675588]
[1769554255294,0.11216643,89268.0,89253.0,0.24675588]
[1769554255466,0.11216643,89267.0,89253.0,0.24675588]
[1769554255664,0.26400765,89270.0,89253.0,0.19073556]
[1769554255894,0.11216675,89269.0,89253.0,0.24675488]
[1769554256090,0.11216675,89268.0,89253.0,0.24675488]
[1769554256434,0.11216675,89267.0,89253.0,0.19073556]
[1769554256633,0.19548436,89271.0,89253.0,0.19073556]